fUST/lending_fUST_20260101
["ID","MTS","AMOUNT","RATE_DAILY","PERIOD"]
[400257585,1767233438595,-500.0,0.00011275,2]
[400257586,1767233438605,-636.00126634,0.00011275,2]
[400257587,1767233438615,-500.0,0.00011275,2]
[400257588,1767233438624,-500.0,0.00011275,2]
[400257589,1767233438634,-500.0,0.00011275,2]
[400257590,1767233438643,-500.0,0.00011275,2]
[400257591,1767233438652,-500.0,0.00011275,2]
[400257592,1767233438662,-578.09170933,0.00011275,2]
[400257593,1767233438671,-407.22345516,0.00011275,2]
[400257594,1767233438681,-409.2167767,0.00011275,2]
[400257595,1767233438690,-216852.27800836,0.00011276,2]
[400257596,1767233438699,-879.8,0.00012433,2]
[400257597,1767233438709,-10000.0,0.0001354,2]
[400257598,1767233438718,-1759.59,0.00013563,2]
[400257599,1767233438728,-500.0,0.00013699,2]
[400257600,1767233438738,-300.0,0.00014246,2]
[400257601,1767233438747,-802.40426112,0.00014247,2]
[400257602,1767233438757,-1002.15006717,0.00014247,2]
[400257603,1767233438766,-1000.82939823,0.00014247,2]
[400257604,1767233438775,-1001.03378818,0.00014247,2]
[400257605,1767233438785,-1000.0,0.00014247,2]
[400257606,1767233438795,-501.97275585,0.00014247,2]
[400257607,1767233438804,-1000.0,0.00014247,2]
[400257608,1767233438813,-250.39394896,0.00014247,2]
[400257609,1767233438822,-536.58274097,0.00014247,2]
[400257610,1767233438831,-1000.0,0.00014247,2]
[400257611,1767233438841,-507.40410749,0.00014247,2]
[400257612,1767233438850,-1000.0,0.00014247,2]
[400257613,1767233438860,-854.03057942,0.00014677,2]
[400257614,1767233438870,-2639.39,0.00014693,2]
[400257615,1767233438879,-167.22528599,0.00014768,2]
[400257616,1767233438888,-590.48711673,0.00014795,2]
[400257617,1767233438898,-1007.15556744,0.00014795,2]
[400257618,1767233438907,-493.36952203,0.00014795,2]
[400257619,1767233438916,-1500.0,0.00014795,2]
[400257620,1767233438926,-1500.0,0.00014795,2]
[400257621,1767233438938,-340.87090137,0.00015178,2]
[400257622,1767233438947,-854.88461,0.00015263,2]
[400257623,1767233438956,-2000.0,0.00015342,2]
[400257624,1767233438966,-2000.0,0.00015342,2]
[400257625,1767233438977,-500.0,0.00015382,2]
[400257626,1767233438986,-420.0,0.00015603,2]
[400257627,1767233438995,-500.0,0.00015656,2]
[400257628,1767233439005,-165.0,0.000158,2]
[400257629,1767233439016,-3519.19,0.00015824,2]
[400257630,1767233439025,-2500.0,0.0001589,2]
[400257631,1767233439034,-2500.0,0.0001589,2]
[400257632,1767233439043,-500.0,0.0001593,2]
[400257633,1767233439052,-500.0,0.00016204,2]
[400257634,1767233439061,-500.0,0.00016438,2]
[400257635,1767233439071,-500.0,0.00016438,2]
[400257636,1767233439080,-500.0,0.00016438,2]
[400257637,1767233439089,-500.0,0.00016438,2]
[400257638,1767233439099,-500.0,0.00016438,2]
[400257639,1767233439108,-500.0,0.00016438,2]
[400257640,1767233439117,-500.0,0.00016438,2]
[400257641,1767233439127,-500.0,0.00016438,2]
[400257642,1767233439137,-500.0,0.00016438,2]
[400257643,1767233439146,-500.0,0.00016438,2]
[400257644,1767233439156,-500.0,0.00016438,2]
[400257645,1767233439166,-500.0,0.00016438,2]
[400257646,1767233439175,-500.0,0.00016438,2]
[400257647,1767233439185,-500.0,0.00016438,2]
[400257648,1767233439195,-500.0,0.00016438,2]
[400257649,1767233439205,-500.0,0.00016438,2]
[400257650,1767233439214,-500.0,0.00016438,2]
[400257651,1767233439224,-500.0,0.00016438,2]
[400257652,1767233439234,-500.0,0.00016438,2]
[400257653,1767233439243,-500.0,0.00016438,2]
[400257654,1767233439252,-500.0,0.00016438,2]
[400257655,1767233439262,-500.0,0.00016438,2]
[400257656,1767233439271,-500.0,0.00016438,2]
[400257657,1767233439280,-500.0,0.00016438,2]
[400257658,1767233439289,-319.23477485,0.00016438,2]
[400257659,1767233439299,-500.0,0.00016438,2]
[400257660,1767233439308,-500.0,0.00016438,2]
[400257661,1767233439317,-500.0,0.00016438,2]
[400257662,1767233439326,-500.0,0.00016438,2]
[400257663,1767233439336,-500.0,0.00016438,2]
[400257664,1767233439345,-500.0,0.00016438,2]
[400257665,1767233439354,-500.0,0.00016438,2]
[400257666,1767233439363,-500.0,0.00016438,2]
[400257667,1767233439372,-500.0,0.00016438,2]
[400257668,1767233439381,-3000.0,0.00016438,2]
[400257669,1767233439390,-3000.0,0.00016438,2]
[400257670,1767233439399,-500.0,0.00016478,2]
[400257671,1767233439408,-500.0,0.00016712,2]
[400257672,1767233439417,-500.0,0.00016752,2]
[400257673,1767233439427,-4398.99,0.00016954,2]
[400257674,1767233439435,-3500.0,0.00016986,2]
[400257675,1767233439444,-2644.83550527,0.00016986,2]
[400257676,1767233439454,-500.0,0.00017026,2]
[400257677,1767233439584,-587.0,0.0001709,2]
[400257678,1767233439594,-385.98616773,0.00017178,2]
[400257679,1767233439603,-500.0,0.000173,2]
[400257680,1767233439613,-531.12860981,0.00017534,2]
[400257681,1767233439622,-500.0,0.00017574,2]
[400257682,1767233439631,-500.0,0.00017848,2]
[400257683,1767233439641,-160.0,0.0001807,2]
[400257684,1767233439650,-5278.78,0.00018084,2]
[400257685,1767233439660,-1041.66666667,0.00018091,2]
[400257686,1767233439669,-500.0,0.00018122,2]
[400257687,1767233439678,-500.0,0.00018396,2]
[400257688,1767233439688,-370.92539221,0.0001867,2]
[400257689,1767233439697,-302.84859387,0.000189,2]
[400257690,1767233439707,-302.8183302,0.000189,2]
[400257691,1767233439716,-302.84859387,0.00019089,2]
[400257692,1767233439726,-302.8183302,0.00019089,2]
[400257693,1767233439735,-431.10143409,0.00019178,2]
[400257694,1767233439744,-502.10616854,0.00019178,2]
[400257695,1767233439754,-150.81623359,0.00019178,2]
[400257696,1767233439764,-300.2,0.00019187,2]
[400257697,1767233439773,-166.66,0.000192,2]
[400257698,1767233439782,-165.66,0.000192,2]
[400257699,1767233439791,-160.03,0.000192,2]
[400257700,1767233439800,-6158.58,0.00019214,2]
[400257701,1767233439810,-270.54905407,0.00019278,2]
[400257702,1767233439819,-302.8183302,0.00019278,2]
[400257703,1767233439828,-302.8183302,0.00019467,2]
[400257704,1767233439837,-302.51578417,0.00019656,2]
[400257705,1767233439846,-1142.44,0.000199,2]
[400257706,1767233439855,-151.69576244,0.0002,2]
[400257707,1767233439864,-1109.1354,0.00020187,2]
[400257708,1767233439874,-7038.38,0.00020345,2]
[400257709,1767233439883,-300.2,0.00020843,2]
[400257710,1767233439892,-100000.0,0.0002099,2]
[400257711,1767233439901,-150.0,0.00021,2]
[400257712,1767233439910,-2152.57771166,0.00021175,2]
[400257713,1767233439920,-476.21670045,0.00021178,2]
[400257714,1767233439932,-2152.57771166,0.00021381,2]
[400257715,1767233439941,-7918.18,0.00021475,2]
[400257716,1767233439950,-1000.0,0.00021667,2]
[400257717,1767233439959,-1000.0,0.00021667,2]
[400257718,1767233439968,-1011.13393425,0.00021667,2]
[400257719,1767233439979,-500.0,0.00021667,2]
[400257720,1767233439988,-500.0,0.00021667,2]
[400257721,1767233439998,-500.0,0.00021667,2]
[400257722,1767233440007,-500.0,0.00021667,2]
[400257723,1767233440017,-500.0,0.00021667,2]
[400257724,1767233440026,-500.0,0.00021667,2]
[400257725,1767233440035,-500.0,0.00021667,2]
[400257727,1767233440044,-500.0,0.00021667,2]
[400257728,1767233440053,-500.0,0.00021667,2]
[400257729,1767233440062,-500.0,0.00021667,2]
[400257730,1767233440071,-500.0,0.00021667,2]
[400257731,1767233440080,-496.47127164,0.00021667,2]
[400257732,1767233440089,-500.0,0.00021667,2]
[400257733,1767233440098,-500.0,0.00021667,2]
[400257734,1767233440107,-500.0,0.00021667,2]
[400257735,1767233440116,-500.0,0.00021667,2]
[400257736,1767233440125,-2128.64226475,0.00021817,2]
[400257737,1767233440135,-2152.57771166,0.000219,2]
[400257738,1767233440144,-1054.64253413,0.00021917,2]
[400257739,1767233440153,-741.71,0.00021917,2]
[400257740,1767233440162,-994.95,0.00021917,2]
[400257741,1767233440171,-501.14175864,0.00021917,2]
[400257742,1767233440180,-164.77426202,0.00021917,2]
[400257743,1767233440189,-501.61607893,0.00021917,2]
[400257744,1767233440198,-1377.56,0.00021917,2]
[400257745,1767233440207,-261.80576345,0.00021917,2]
[400257746,1767233440217,-500.0,0.00021917,2]
[400257747,1767233440226,-500.0,0.00021917,2]
[400257748,1767233440235,-500.0,0.00021917,2]
[400257749,1767233440244,-502.36161137,0.00021917,2]
[400257751,1767233440253,-500.0,0.00021917,2]
[400257752,1767233440262,-632.78,0.00021917,2]
[400257753,1767233440272,-500.0,0.00021917,2]
[400257754,1767233440281,-1002.81854371,0.00021917,2]
[400257755,1767233440290,-502.6188303,0.00021917,2]
[400257756,1767233440299,-1267.28,0.00021917,2]
[400257757,1767233440309,-500.0,0.00021917,2]
[400257759,1767233440318,-221.23622251,0.00021917,2]
[400257760,1767233440328,-515.64346057,0.00021917,2]
[400257761,1767233440336,-153.08076571,0.00021917,2]
[400257762,1767233440346,-7541.97,0.00021917,2]
[400257763,1767233440355,-638.21120417,0.00021917,2]
[400257765,1767233440363,-505.51459349,0.00021917,2]
[400257767,1767233440372,-318.57542808,0.00021917,2]
[400257769,1767233440381,-571.63817192,0.00021917,2]
[400257771,1767233440390,-1003.51660115,0.00021917,2]
[400257772,1767233440399,-500.0,0.00021917,2]
[400257774,1767233440408,-500.0,0.00021917,2]
[400257776,1767233440419,-500.0,0.00021917,2]
[400257778,1767233440428,-4618.33,0.00021917,2]
[400257780,1767233440437,-689.27,0.00021917,2]
[400257782,1767233440446,-500.0,0.00021917,2]
[400257784,1767233440455,-565.0152921,0.00021917,2]
[400257786,1767233440464,-152.71619379,0.00021917,2]
[400257788,1767233440473,-520.37445371,0.00021917,2]
[400257790,1767233440482,-494.4028866,0.00021917,2]
[400257792,1767233440491,-1292.45,0.00021917,2]
[400257793,1767233440500,-1297.56,0.00021917,2]
[400257795,1767233440510,-500.0,0.00021917,2]
[400257797,1767233440519,-500.0,0.00021917,2]
[400257799,1767233440529,-994.81,0.00021917,2]
[400257801,1767233440539,-1041.02,0.00021917,2]
[400257803,1767233440548,-180.1600852,0.00021917,2]
[400257805,1767233440557,-1307.72,0.00021917,2]
[400257807,1767233440566,-241.06838405,0.00021917,2]
[400257809,1767233440575,-500.0,0.00021917,2]
[400257811,1767233440584,-500.0,0.00021917,2]
[400257813,1767233440594,-219.20142378,0.00021917,2]
[400257815,1767233440603,-500.0,0.00021917,2]
[400257817,1767233440612,-500.0,0.00021917,2]
[400257819,1767233440622,-272.97,0.00022,7]
[400257821,1767233440631,-884.0,0.00022,2]
[400257823,1767233440640,-1142.44,0.00022,14]
[400257825,1767233440649,-184.0,0.00022,2]
[400257827,1767233440657,-166.0,0.00022,2]
[400257829,1767233440666,-2128.64226472,0.00022088,2]
[400257830,1767233440676,-2152.57771166,0.00022151,2]
[400257832,1767233440685,-1054.64253413,0.00022191,2]
[400257834,1767233440694,-741.71,0.00022191,2]
[400257836,1767233440703,-994.95,0.00022191,2]
[400257838,1767233440713,-1377.56,0.00022191,2]
[400257840,1767233440723,-500.0,0.00022191,2]
[400257842,1767233440731,-500.0,0.00022191,2]
[400257844,1767233440741,-500.0,0.00022191,2]
[400257846,1767233440750,-500.0,0.00022191,2]
[400257848,1767233440760,-632.78,0.00022191,2]
[400257850,1767233440769,-500.0,0.00022191,2]
[400257852,1767233440778,-1267.28,0.00022191,2]
[400257854,1767233440787,-500.0,0.00022191,2]
[400257856,1767233440796,-7541.97,0.00022191,2]
[400257858,1767233440805,-500.0,0.00022191,2]
[400257860,1767233440814,-500.0,0.00022191,2]
[400257861,1767233440823,-500.0,0.00022191,2]
[400257863,1767233440833,-4618.33,0.00022191,2]
[400257865,1767233440842,-689.27,0.00022191,2]
[400257867,1767233440852,-500.0,0.00022191,2]
[400257869,1767233440860,-1292.45,0.00022191,2]
[400257871,1767233440869,-1297.56,0.00022191,2]
[400257873,1767233440878,-234.85142881,0.00022191,2]
[400257875,1767233440887,-500.0,0.00022191,2]
[400257877,1767233440896,-994.81,0.00022191,2]
[400257879,1767233440905,-1041.02,0.00022191,2]
[400257881,1767233440914,-1307.72,0.00022191,2]
[400257883,1767233440923,-500.0,0.00022191,2]
[400257885,1767233440937,-500.0,0.00022191,2]
[400257887,1767233440946,-500.0,0.00022191,2]
[400257889,1767233440954,-514.84070869,0.00022215,2]
[400257891,1767233440963,-2152.57771166,0.00022312,2]
[400257893,1767233440974,-162.279,0.00022315,2]
[400257895,1767233440983,-183.86130578,0.00022315,2]
[400257897,1767233440992,-2128.64226472,0.00022359,2]
[400257899,1767233441001,-1054.64253413,0.00022465,2]
[400257900,1767233441014,-741.71,0.00022465,2]
[400257902,1767233441024,-994.95,0.00022465,2]
[400257904,1767233441038,-1377.56,0.00022465,2]
[400257906,1767233441047,-500.0,0.00022465,2]
[400257908,1767233441056,-500.0,0.00022465,2]
[400257910,1767233441065,-199.58593008,0.00022465,2]
[400257912,1767233441074,-500.0,0.00022465,2]
[400257914,1767233441083,-632.78,0.00022465,2]
[400257916,1767233441092,-500.0,0.00022465,2]
[400257918,1767233441101,-1267.28,0.00022465,2]
[400257920,1767233441110,-415.42619275,0.00022465,2]
[400257922,1767233441119,-7541.97,0.00022465,2]
[400257923,1767233441128,-500.0,0.00022465,2]
[400257925,1767233441137,-500.0,0.00022465,2]
[400257927,1767233441146,-500.0,0.00022465,2]
[400257929,1767233441155,-4618.33,0.00022465,2]
[400257931,1767233441164,-689.27,0.00022465,2]
[400257933,1767233441173,-500.0,0.00022465,2]
[400257935,1767233441182,-1292.45,0.00022465,2]
[400257937,1767233441191,-1297.56,0.00022465,2]
[400257939,1767233441199,-500.0,0.00022465,2]
[400257941,1767233441209,-994.81,0.00022465,2]
[400257943,1767233441217,-1041.02,0.00022465,2]
[400257945,1767233441226,-1307.72,0.00022465,2]
[400257946,1767233441235,-500.0,0.00022465,2]
[400257948,1767233441244,-500.0,0.00022465,2]
[400257950,1767233441253,-500.0,0.00022465,2]
[400257952,1767233441262,-316.62370021,0.00022466,7]
[400257954,1767233441272,-300.2,0.00022499,2]
[400257956,1767233441281,-1543.62824389,0.0002254,2]
[400257958,1767233441290,-2152.57771169,0.00022569,2]
[400257960,1767233441299,-405.32636328,0.00022582,7]
[400257962,1767233441309,-8797.97,0.00022605,2]
[400257964,1767233441319,-2128.64226472,0.00022629,2]
[400257966,1767233441329,-468.0,0.00022666,2]
[400257968,1767233441339,-1621.30545312,0.00022685,7]
[400257970,1767233441349,-150.0,0.000227,2]
[400257972,1767233441359,-1054.64253413,0.00022739,2]
[400257974,1767233441368,-741.71,0.00022739,2]
[400257976,1767233441378,-994.95,0.00022739,2]
[400257978,1767233441387,-662.55270921,0.00022739,2]
[400257980,1767233441396,-1192.59487657,0.00022739,2]
[400257982,1767233441406,-2120.16866946,0.00022739,2]
[400257984,1767233441415,-3312.76354604,0.00022739,2]
[400257986,1767233441426,-724.84051966,0.00022739,2]
[400257988,1767233441435,-1304.71293539,0.00022739,2]
[400257990,1767233441444,-2319.48966291,0.00022739,2]
[400257992,1767233441454,-3624.20259829,0.00022739,2]
[400257994,1767233441462,-5218.85174154,0.00022739,2]
[400257996,1767233441472,-1377.56,0.00022739,2]
[400257997,1767233441481,-500.0,0.00022739,2]
[400257999,1767233441490,-500.0,0.00022739,2]
[400258001,1767233441499,-4770.37950629,0.00022739,2]
[400258003,1767233441509,-173.6360102,0.00022739,2]
[400258005,1767233441518,-500.0,0.00022739,2]
[400258007,1767233441527,-632.78,0.00022739,2]
[400258009,1767233441537,-500.0,0.00022739,2]
[400258011,1767233441545,-7103.43709266,0.00022739,2]
[400258012,1767233441555,-1267.28,0.00022739,2]
[400258013,1767233441570,-7541.97,0.00022739,2]
[400258014,1767233441580,-500.0,0.00022739,2]
[400258015,1767233441590,-500.0,0.00022739,2]
[400258016,1767233441600,-500.0,0.00022739,2]
[400258017,1767233441610,-4618.33,0.00022739,2]
[400258018,1767233441619,-689.27,0.00022739,2]
[400258019,1767233441629,-500.0,0.00022739,2]
[400258020,1767233441640,-1292.45,0.00022739,2]
[400258021,1767233441654,-1297.56,0.00022739,2]
[400258022,1767233441663,-500.0,0.00022739,2]
[400258023,1767233441674,-312.54481837,0.00022739,2]
[400258024,1767233441684,-994.81,0.00022739,2]
[400258025,1767233441694,-1041.02,0.00022739,2]
[400258026,1767233441703,-1307.72,0.00022739,2]
[400258027,1767233441713,-500.0,0.00022739,2]
[400258028,1767233441722,-354.71049258,0.00022739,2]
[400258029,1767233441732,-500.0,0.00022739,2]
[400258030,1767233441742,-176.07,0.00022757,2]
[400258031,1767233441751,-533.88981491,0.00022763,2]
[400258032,1767233441761,-119892.61031874,0.0002277,2]
[400258033,1767233441770,-3644.28933225,0.00022788,7]
[400258034,1767233441780,-145463.86630823,0.00022886,2]
[400258035,1767233441789,-207.38126532,0.000229,2]
[400258036,1767233441799,-21611.49,0.000229,2]
[400258037,1767233441808,-2128.64226472,0.000229,2]
[400258039,1767233441817,-897.0,0.000229,2]
[400258041,1767233441826,-774.713121,0.00022904,2]
[400258043,1767233441835,-17033.7666433,0.00022904,2]
[400258045,1767233441845,-85404.8565249,0.00022904,2]
[400258047,1767233441854,-1494.1825012,0.00022904,2]
[400258049,1767233441864,-135462.3832313,0.00023,30]
[400258051,1767233441873,-1083.25252739,0.00023,30]
[400258053,1767233441882,-2032.0,0.00023,2]
[400258055,1767233441891,-260.78,0.00023,2]
[400258057,1767233441900,-250.0,0.00023,10]
[400258058,1767233441909,-432.0,0.00023011,2]
[400258060,1767233441918,-1054.64253413,0.00023013,2]
[400258062,1767233441928,-741.71,0.00023013,2]
[400258064,1767233441940,-994.95,0.00023013,2]
[400258066,1767233441949,-1377.56,0.00023013,2]
[400258068,1767233441959,-500.0,0.00023013,2]
[400258070,1767233441970,-500.0,0.00023013,2]
[400258072,1767233441981,-500.0,0.00023013,2]
[400258082,1767233441990,-632.78,0.00023013,2]
[400258086,1767233442105,-500.0,0.00023013,2]
[400258088,1767233442114,-1267.28,0.00023013,2]
[400258090,1767233442123,-7541.97,0.00023013,2]
[400258092,1767233442133,-500.0,0.00023013,2]
[400258094,1767233442142,-500.0,0.00023013,2]
[400258096,1767233442152,-500.0,0.00023013,2]
[400258098,1767233442161,-4618.33,0.00023013,2]
[400258100,1767233442170,-689.27,0.00023013,2]
[400258102,1767233442180,-517.57172316,0.00023013,2]
[400258104,1767233442188,-1292.45,0.00023013,2]
[400258106,1767233442197,-1297.56,0.00023013,2]
[400258108,1767233442207,-500.0,0.00023013,2]
[400258110,1767233442217,-994.81,0.00023013,2]
[400258111,1767233442233,-1041.02,0.00023013,2]
[400258113,1767233442245,-1307.72,0.00023013,2]
[400258115,1767233442254,-500.0,0.00023013,2]
[400258117,1767233442264,-500.0,0.00023013,2]
[400258119,1767233442274,-167.0,0.00023014,7]
[400258121,1767233442283,-432.0,0.00023015,2]
[400258123,1767233442292,-468.0,0.00023024,2]
[400258125,1767233442302,-432.0,0.00023065,2]
[400258127,1767233442311,-432.0,0.00023076,2]
[400258129,1767233442320,-1142.44,0.000231,14]
[400258131,1767233442329,-250.0,0.000231,10]
[400258133,1767233442338,-159.98512095,0.00023121,2]
[400258135,1767233442347,-468.0,0.00023121,2]
[400258137,1767233442357,-159.54683163,0.00023129,2]
[400258139,1767233442366,-292.74838652,0.00023129,2]
[400258141,1767233442375,-468.0,0.00023139,2]
[400258142,1767233442384,-215.78782942,0.00023141,7]
[400258144,1767233442393,-215.78782943,0.00023168,7]
[400258146,1767233442402,-315.72030468,0.00023174,2]
[400258148,1767233442412,-432.0,0.00023175,2]
[400258150,1767233442421,-431.57565886,0.00023176,7]
[400258152,1767233442431,-521.33196681,0.00023178,2]
[400258154,1767233442441,-478.64049494,0.00023184,2]
[400258156,1767233442450,-651.01399921,0.00023184,2]
[400258158,1767233442459,-432.0,0.00023194,2]
[400258160,1767233442468,-432.0,0.00023196,2]
[400258162,1767233442477,-272.97,0.000232,7]
[400258164,1767233442488,-351.933531,0.000232,10]
[400258166,1767233442498,-206.5707004,0.00023233,2]
[400258168,1767233442507,-303.4572356,0.00023233,2]
[400258170,1767233442524,-198.1206149,0.00023233,2]
[400258172,1767233442536,-193.381103,0.00023233,2]
[400258174,1767233442545,-599.7286954,0.00023233,2]
[400258176,1767233442556,-303.4572356,0.00023233,2]
[400258178,1767233442566,-193.3811029,0.00023233,2]
[400258180,1767233442575,-599.7286954,0.00023233,2]
[400258182,1767233442584,-303.4572356,0.00023233,2]
[400258184,1767233442593,-303.4572356,0.00023233,2]
[400258186,1767233442602,-599.7286954,0.00023233,2]
[400258188,1767233442611,-432.0,0.00023241,2]
[400258190,1767233442620,-651.01399921,0.00023252,5]
[400258192,1767233442629,-318.36132628,0.00023281,7]
[400258194,1767233442638,-1054.64253413,0.00023287,2]
[400258196,1767233442647,-741.71,0.00023287,2]
[400258198,1767233442657,-994.95,0.00023287,2]
[400258200,1767233442666,-1377.56,0.00023287,2]
[400258202,1767233442675,-500.0,0.00023287,2]
[400258204,1767233442684,-500.0,0.00023287,2]
[400258205,1767233442694,-500.0,0.00023287,2]
[400258207,1767233442703,-632.78,0.00023287,2]
[400258209,1767233442714,-500.0,0.00023287,2]
[400258211,1767233442723,-1267.28,0.00023287,2]
[400258213,1767233442732,-7541.97,0.00023287,2]
[400258215,1767233442742,-495.06386694,0.00023287,2]
[400258217,1767233442751,-500.0,0.00023287,2]
[400258219,1767233442760,-500.0,0.00023287,2]
[400258221,1767233442770,-4618.33,0.00023287,2]
[400258223,1767233442779,-689.27,0.00023287,2]
[400258225,1767233442788,-1292.45,0.00023287,2]
[400258227,1767233442798,-1297.56,0.00023287,2]
[400258229,1767233442807,-500.0,0.00023287,2]
[400258231,1767233442816,-994.81,0.00023287,2]
[400258233,1767233442825,-1041.02,0.00023287,2]
[400258235,1767233442834,-1307.72,0.00023287,2]
[400258237,1767233442843,-500.0,0.00023287,2]
[400258239,1767233442852,-500.0,0.00023287,2]
[400258241,1767233442860,-276.51214329,0.0002329,2]
[400258243,1767233442869,-165.4563905,0.0002329,2]
[400258244,1767233442878,-342.86503542,0.0002329,2]
[400258246,1767233442887,-171.43251768,0.0002329,2]
[400258248,1767233442896,-284.37429516,0.0002329,2]
[400258250,1767233442905,-468.0,0.00023308,2]
[400258252,1767233442914,-553.64373807,0.00023311,2]
[400258254,1767233442924,-315.72030468,0.00023313,9]
[400258256,1767233442938,-651.01399921,0.00023319,9]
[400258258,1767233442947,-478.64049494,0.00023324,9]
[400258260,1767233442956,-432.0,0.00023326,2]
[400258262,1767233442966,-1273.44530513,0.00023352,7]
[400258264,1767233442975,-651.01399921,0.00023386,13]
[400258266,1767233442984,-292.74838652,0.00023407,17]
[400258268,1767233442993,-168.0,0.00023417,2]
[400258270,1767233443005,-2865.25193653,0.00023422,7]
[400258272,1767233443014,-342.86503542,0.0002343,4]
[400258274,1767233443025,-284.37429516,0.0002343,9]
[400258276,1767233443034,-315.72030468,0.00023453,17]
[400258278,1767233443044,-651.01399921,0.00023454,16]
[400258280,1767233443054,-478.64049494,0.00023463,17]
[400258282,1767233443064,-5088.68743929,0.00023492,7]
[400258284,1767233443073,-228.56218717,0.00023493,7]
[400258286,1767233443083,-176.07,0.00023514,2]
[400258288,1767233443092,-651.01399921,0.00023521,20]
[400258290,1767233443101,-1054.64253413,0.00023561,2]
[400258292,1767233443114,-151.0,0.00023561,2]
[400258294,1767233443123,-187.101628,0.00023561,2]
[400258297,1767233443132,-741.71,0.00023561,2]
[400258299,1767233443141,-994.95,0.00023561,2]
[400258301,1767233443150,-1377.56,0.00023561,2]
[400258302,1767233443159,-151.0,0.00023561,2]
[400258304,1767233443169,-151.0,0.00023561,2]
[400258306,1767233443178,-151.0,0.00023561,2]
[400258309,1767233443187,-151.0,0.00023561,2]
[400258312,1767233443197,-294.43378,0.00023561,2]
[400258315,1767233443206,-500.0,0.00023561,2]
[400258317,1767233443215,-209.15580858,0.00023561,2]
[400258319,1767233443225,-500.0,0.00023561,2]
[400258321,1767233443234,-632.78,0.00023561,2]
[400258323,1767233443243,-151.0,0.00023561,2]
[400258325,1767233443252,-151.0,0.00023561,2]
[400258327,1767233443261,-151.0,0.00023561,2]
[400258329,1767233443271,-151.0,0.00023561,2]
[400258331,1767233443280,-500.0,0.00023561,2]
[400258332,1767233443289,-491.980544,0.00023561,2]
[400258334,1767233443298,-491.980544,0.00023561,2]
[400258336,1767233443308,-491.980544,0.00023561,2]
[400258338,1767233443317,-491.980544,0.00023561,2]
[400258340,1767233443326,-151.000023,0.00023561,2]
[400258342,1767233443336,-1267.28,0.00023561,2]
[400258344,1767233443346,-428.591324,0.00023561,2]
[400258346,1767233443354,-428.591324,0.00023561,2]
[400258348,1767233443364,-428.591324,0.00023561,2]
[400258350,1767233443373,-428.591324,0.00023561,2]
[400258352,1767233443382,-7541.97,0.00023561,2]
[400258354,1767233443391,-500.0,0.00023561,2]
[400258356,1767233443400,-500.0,0.00023561,2]
[400258358,1767233443410,-4618.33,0.00023561,2]
[400258360,1767233443419,-689.27,0.00023561,2]
[400258362,1767233443427,-1292.45,0.00023561,2]
[400258363,1767233443437,-1297.56,0.00023561,2]
[400258365,1767233443446,-500.0,0.00023561,2]
[400258367,1767233443455,-994.81,0.00023561,2]
[400258369,1767233443464,-1041.02,0.00023561,2]
[400258371,1767233443474,-1307.72,0.00023561,2]
[400258373,1767233443483,-151.0,0.00023561,2]
[400258375,1767233443492,-500.0,0.00023561,2]
[400258377,1767233443501,-500.0,0.00023561,2]
[400258379,1767233443511,-151.0,0.00023561,2]
[400258381,1767233443520,-177.0,0.00023562,10]
[400258383,1767233443530,-342.86503542,0.0002357,6]